[Event "EYCC Open U14 2021"]
[Site "Tornelo"]
[Date "2021.10.15"]
[Round "3.5"]
[White "Bakiev, Diyor"]
[Black "Aleksanyan, Davit"]
[Result "1-0"]
[ECO "B04"]
[WhiteElo "2074"]
[BlackElo "1795"]
[Annotator "NA"]
[PlyCount "187"]
[EventDate "2021.10.15"]
[EventType "swiss"]
[EventCountry "NET"]
[SourceTitle "playchess.com"]
[Source "ChessBase"]
[SourceQuality "1"]
[TimeControl "5400+30"]

1. e4 {[%emt 0:00:30]} Nf6 {[%emt 0:01:13]} 2. e5 {[%emt 0:00:23]} Nd5 {[%emt 0:00:04]} 3. c4 {[%emt 0:00:20]} Nb6 {[%emt 0:00:03]} 4. d4 {[%emt 0:00:08]} d6 {[%emt 0:00:04]} 5. exd6 {[%emt 0:00:17]} cxd6 {[%emt 0:00:05]} 6. Nc3 {[%emt 0:00:17]} g6 {[%emt 0:00:05]} 7. Be3 {[%emt 0:00:43]} Bg7 {[%emt 0:00:04]} 8. Rc1 {[%emt 0:01:48]} O-O {[%emt 0:00:08]} 9. Be2 {[%emt 0:01:44]} Nc6 {[%emt 0:00:07]} 10. Nf3 {[%emt 0:00:39]} Bg4 {[%emt 0:00:07]} 11. b3 {[%emt 0:01:16]} e5 {[%emt 0:01:35]} 12. d5 {[%emt 0:02:11]} Bxf3 {[%emt 0:02:36]} 13. Bxf3 {[%emt 0:01:50]} Nd4 {[%emt 0:01:13]} 14. Bxd4 {[%emt 0:03:36]} exd4 {[%emt 0:00:17]} 15. Ne2 {[%emt 0:01:23]} Qf6 {[%emt 0:00:59]} 16. O-O {[%emt 0:01:30]} Nd7 {[%emt 0:01:10]} 17. Qd2 {[%emt 0:10:19]} Nc5 {[%emt 0:18:33]} 18. Rcd1 {[%emt 0:09:32]} d3 {[%emt 0:01:26]} 19. Nc1 {[%emt 0:03:35]} a5 {[%emt 0:08:47]} 20. Nxd3 {[%emt 0:02:00]} b6 {[%emt 0:00:31]} 21. Rfe1 {[%emt 0:02:43]} a4 {[%emt 0:00:45]} 22. b4 {[%emt 0:05:35]} Nxd3 {[%emt 0:01:23]} 23. Qxd3 {[%emt 0:00:10]} a3 {[%emt 0:00:55]} 24. Rb1 {[%emt 0:07:54]} Qc3 {[%emt 0:02:45]} 25. Qxc3 {[%emt 0:04:14]} Bxc3 {[%emt 0:00:09]} 26. Re3 {[%emt 0:02:08]} Bb2 {[%emt 0:00:06]} 27. Bd1 {[%emt 0:08:00]} Rfe8 {[%emt 0:05:10]} 28. Bb3 {[%emt 0:04:07]} Rxe3 {[%emt 0:00:13]} 29. fxe3 {[%emt 0:00:13]} Bc3 {[%emt 0:00:08]} 30. Bc2 {[%emt 0:01:15]} Rc8 {[%emt 0:02:38]} 31. Bd3 {[%emt 0:01:42]} f5 {[%emt 0:01:12]} 32. Rb3 {[%emt 0:01:20]} Bd2 {[%emt 0:00:16]} 33. Kf2 {[%emt 0:00:39]} Re8 {[%emt 0:00:11]} 34. Be2 {[%emt 0:02:49]} Kg7 {[%emt 0:01:33]} 35. c5 {[%emt 0:03:07]} bxc5 {[%emt 0:02:44]} 36. bxc5 {[%emt 0:00:08]} dxc5 {[%emt 0:00:03]} 37. Rxa3 {[%emt 0:00:26]} Kf6 {[%emt 0:00:36]} 38. Ra6+ {[%emt 0:04:51]} Kg5 {[%emt 0:00:25]} 39. Re6 {[%emt 0:04:01]} Rb8 {[%emt 0:11:49]} 40. d6 {[%emt 0:01:57]} Ba5 {[%emt 0:03:26]} 41. d7 {[%emt 0:00:48]} Rb7 {[%emt 0:06:49]} 42. Rd6 {[%emt 0:02:36]} Bd8 {[%emt 0:00:26]} 43. a4 {[%emt 0:00:52]} Rb2 {[%emt 0:01:21]} 44. Kf3 {[%emt 0:00:42]} Rb6 {[%emt 0:08:49]} 45. Rd5 {[%emt 0:02:11]} Rc6 {[%emt 0:00:30]} 46. Bb5 {[%emt 0:00:26]} Rc7 {[%emt 0:00:06]} 47. Re5 {[%emt 0:01:13]} Rb7 {[%emt 0:05:27]} 48. Re8 {[%emt 0:00:13]} Rb8 {[%emt 0:00:05]} 49. Ba6 {[%emt 0:01:10]} Kf6 {[%emt 0:01:18]} 50. Bc8 {[%emt 0:00:19]} Ba5 {[%emt 0:00:08]} 51. d8=Q+ {[%emt 0:00:28]} Bxd8 {[%emt 0:00:04]} 52. Rxd8 {[%emt 0:00:03]} Ra8 {[%emt 0:00:12]} 53. Rd6+ {[%emt 0:00:41]} Ke7 {[%emt 0:00:04]} 54. Rc6 {[%emt 0:00:26]} Rxa4 {[%emt 0:00:09]} 55. Rxc5 {[%emt 0:00:13]} Kd6 {[%emt 0:00:03]} 56. Rc2 {[%emt 0:00:34]} Ke5 {[%emt 0:00:07]} 57. Bd7 {[%emt 0:00:41]} Rb4 {[%emt 0:00:08]} 58. Bc6 {[%emt 0:00:50]} g5 {[%emt 0:00:11]} 59. Kf2 {[%emt 0:01:32]} h6 {[%emt 0:00:15]} 60. Bf3 {[%emt 0:00:25]} g4 {[%emt 0:00:13]} 61. Be2 {[%emt 0:00:14]} h5 {[%emt 0:00:04]} 62. Rc5+ {[%emt 0:00:23]} Kf6 {[%emt 0:00:04]} 63. Bd3 {[%emt 0:00:22]} Rb2+ {[%emt 0:00:16]} 64. Kg3 {[%emt 0:00:28]} h4+ {[%emt 0:00:15]} 65. Kxh4 {[%emt 0:00:11]} Rxg2 {[%emt 0:00:03]} 66. Rxf5+ {[%emt 0:00:06]} Ke6 {[%emt 0:00:02]} 67. Rf4 {[%emt 0:00:38]} Ke5 {[%emt 0:00:13]} 68. Rxg4 {[%emt 0:00:19]} Rxh2+ {[%emt 0:00:03]} 69. Kg3 {[%emt 0:00:05]} Rd2 {[%emt 0:00:02]} 70. Re4+ {[%emt 0:00:24]} Kf5 {[%emt 0:00:18]} 71. Rd4+ {[%emt 0:00:20]} Ke5 {[%emt 0:00:03]} 72. Kf3 {[%emt 0:00:10]} Rd1 {[%emt 0:00:10]} 73. Re4+ {[%emt 0:00:13]} Kf5 {[%emt 0:00:06]} 74. Be2 {[%emt 0:00:44]} Rh1 {[%emt 0:00:06]} 75. Rf4+ {[%emt 0:00:19]} Ke5 {[%emt 0:00:04]} 76. Rg4 {[%emt 0:00:14]} Rh3+ {[%emt 0:00:07]} 77. Rg3 {[%emt 0:00:04]} Rh5 {[%emt 0:00:07]} 78. Bd3 {[%emt 0:00:33]} Rh2 {[%emt 0:00:07]} 79. Rg5+ {[%emt 0:00:10]} Kf6 {[%emt 0:00:03]} 80. Ra5 {[%emt 0:00:43]} Rh3+ {[%emt 0:00:05]} 81. Kf4 {[%emt 0:00:14]} Rh4+ {[%emt 0:00:04]} 82. Kg3 {[%emt 0:00:11]} Rb4 {[%emt 0:00:03]} 83. Be2 {[%emt 0:00:43]} Rb2 {[%emt 0:00:06]} 84. Bf3 {[%emt 0:00:12]} Ke6 {[%emt 0:00:07]} 85. Kf4 {[%emt 0:00:12]} Rb8 {[%emt 0:00:04]} 86. Ra6+ {[%emt 0:00:11]} Ke7 {[%emt 0:00:01]} 87. Bg4 {[%emt 0:00:07]} Rb4+ {[%emt 0:00:04]} 88. e4 {[%emt 0:00:04]} Rb1 {[%emt 0:00:05]} 89. Bf5 {[%emt 0:00:06]} Rc1 {[%emt 0:00:05]} 90. Ra7+ {[%emt 0:00:08]} Kd6 {[%emt 0:00:04]} 91. e5+ {[%emt 0:00:11]} Kc6 {[%emt 0:00:05]} 92. Kg5 {[%emt 0:00:20]} Kd5 {[%emt 0:00:08]} 93. Kf6 {[%emt 0:00:12]} Rc6+ {[%emt 0:00:05]} 94. e6 {[%emt 0:00:05]} 1-0

[Event "EYCC Open U14 2021"]
[Site "Tornelo"]
[Date "2021.10.15"]
[Round "3.6"]
[White "Gasparyan, Erik R."]
[Black "Vagman, Roy"]
[Result "1-0"]
[ECO "A06"]
[WhiteElo "1777"]
[BlackElo "2070"]
[Annotator "NA"]
[PlyCount "127"]
[EventDate "2021.10.15"]
[EventType "swiss"]
[EventCountry "NET"]
[SourceTitle "playchess.com"]
[Source "ChessBase"]
[SourceQuality "1"]
[TimeControl "5400+30"]

1. Nf3 {[%emt 0:00:30]} d5 {[%emt 0:00:40]} 2. b3 {[%emt 0:00:48]} Bg4 {[%emt 0:00:46]} 3. Ne5 {[%emt 0:00:57]} Bf5 {[%emt 0:00:58]} 4. Bb2 {[%emt 0:00:07]} e6 {[%emt 0:01:08]} 5. e3 {[%emt 0:00:29]} Nf6 {[%emt 0:01:10]} 6. d4 {[%emt 0:00:15]} c6 {[%emt 0:01:27]} 7. Bd3 {[%emt 0:00:46]} Nbd7 {[%emt 0:02:14]} 8. O-O {[%emt 0:03:47]} Bd6 {[%emt 0:01:50]} 9. f4 {[%emt 0:03:02]} h5 {[%emt 0:02:55]} 10. Nd2 {[%emt 0:03:40]} Qe7 {[%emt 0:07:19]} 11. Ndf3 {[%emt 0:01:59]} Ne4 {[%emt 0:04:14]} 12. c4 {[%emt 0:03:57]} Ndf6 {[%emt 0:10:08]} 13. Rc1 {[%emt 0:07:32]} Ng4 {[%emt 0:03:33]} 14. Qe2 {[%emt 0:01:30]} f6 {[%emt 0:12:30]} 15. Nxg4 {[%emt 0:00:17]} hxg4 {[%emt 0:03:05]} 16. Nd2 {[%emt 0:00:29]} Nxd2 {[%emt 0:06:18]} 17. Qxd2 {[%emt 0:00:09]} Bxd3 {[%emt 0:00:42]} 18. Qxd3 {[%emt 0:00:03]} f5 {[%emt 0:00:09]} 19. g3 {[%emt 0:02:27]} g6 {[%emt 0:00:45]} 20. c5 {[%emt 0:01:21]} Bc7 {[%emt 0:02:22]} 21. b4 {[%emt 0:00:16]} a6 {[%emt 0:00:43]} 22. a4 {[%emt 0:00:19]} Rh3 {[%emt 0:01:09]} 23. Ra1 {[%emt 0:01:59]} Qh7 {[%emt 0:02:02]} 24. Qe2 {[%emt 0:00:14]} Kf7 {[%emt 0:02:02]} 25. Rf2 {[%emt 0:00:43]} Rh8 {[%emt 0:02:13]} 26. Rg2 {[%emt 0:00:05]} Qg8 {[%emt 0:01:00]} 27. b5 {[%emt 0:05:37]} Qa8 {[%emt 0:00:23]} 28. Bc3 {[%emt 0:03:05]} Rg8 {[%emt 0:01:01]} 29. Qb2 {[%emt 0:00:31]} Rh7 {[%emt 0:02:18]} 30. Qb1 {[%emt 0:00:41]} Kf6 {[%emt 0:01:44]} 31. Rb2 {[%emt 0:00:18]} Rgh8 {[%emt 0:01:35]} 32. Raa2 {[%emt 0:00:49]} g5 {[%emt 0:02:15]} 33. Qe1 {[%emt 0:04:07]} Rb8 {[%emt 0:03:10]} 34. Ra1 {[%emt 0:03:46]} Kg6 {[%emt 0:01:58]} 35. Rab1 {[%emt 0:00:23]} Rbh8 {[%emt 0:01:18]} 36. Rc1 {[%emt 0:01:48]} axb5 {[%emt 0:03:26]} 37. axb5 {[%emt 0:00:10]} cxb5 {[%emt 0:01:09]} 38. Ra1 {[%emt 0:00:20]} Qe8 {[%emt 0:00:22]} 39. Ba5 {[%emt 0:00:39]} Qc6 {[%emt 0:04:46]} 40. Bxc7 {[%emt 0:00:44]} Qxc7 {[%emt 0:01:02]} 41. Qa5 {[%emt 0:00:13]} Qg7 {[%emt 0:00:50]} 42. fxg5 {[%emt 0:04:00]} Kxg5 {[%emt 0:00:24]} 43. Qxb5 {[%emt 0:00:58]} Rh3 {[%emt 0:02:50]} 44. Qf1 {[%emt 0:08:08]} Qh7 {[%emt 0:01:49]} 45. Qf4+ {[%emt 0:00:08]} Kg6 {[%emt 0:00:31]} 46. Raa2 {[%emt 0:00:37]} Re8 {[%emt 0:00:50]} 47. Ra7 {[%emt 0:00:49]} Re7 {[%emt 0:00:36]} 48. Qe5 {[%emt 0:03:18]} Qf7 {[%emt 0:00:27]} 49. Rb6 {[%emt 0:00:47]} Kg5 {[%emt 0:00:36]} 50. Qf4+ {[%emt 0:02:26]} Kg6 {[%emt 0:00:07]} 51. Qd6 {[%emt 0:00:06]} Qh7 {[%emt 0:01:12]} 52. Rb2 {[%emt 0:00:09]} Kf6 {[%emt 0:00:31]} 53. Ra8 {[%emt 0:00:43]} Qf7 {[%emt 0:00:57]} 54. c6 {[%emt 0:01:14]} bxc6 {[%emt 0:01:29]} 55. Rbb8 {[%emt 0:00:14]} Rd7 {[%emt 0:00:49]} 56. Qf4 {[%emt 0:02:08]} Ke7 {[%emt 0:01:20]} 57. Qg5+ {[%emt 0:00:16]} Kd6 {[%emt 0:00:09]} 58. Re8 {[%emt 0:00:04]} Kc7 {[%emt 0:01:10]} 59. Qf4+ {[%emt 0:00:06]} Kb6 {[%emt 0:00:12]} 60. Qf1 {[%emt 0:00:45]} Rb7 {[%emt 0:02:10]} 61. Qa6+ {[%emt 0:00:23]} Kc7 {[%emt 0:00:06]} 62. Rac8+ {[%emt 0:00:02]} Kd6 {[%emt 0:00:09]} 63. Qa3+ {[%emt 0:00:02]} Kd7 {[%emt 0:00:38]} 64. Red8# {[%emt 0:00:04]} 1-0

[Event "EYCC Open U14 2021"]
[Site "Tornelo"]
[Date "2021.10.15"]
[Round "3.7"]
[White "Klimkowski, Jan"]
[Black "Guia, Artur Solovyov Eloy"]
[Result "1-0"]
[ECO "A46"]
[WhiteElo "2366"]
[BlackElo "2000"]
[Annotator "NA"]
[PlyCount "115"]
[EventDate "2021.10.15"]
[EventType "swiss"]
[EventCountry "NET"]
[SourceTitle "playchess.com"]
[Source "ChessBase"]
[SourceQuality "1"]
[TimeControl "5400+30"]

1. d4 {[%emt 0:00:30]} Nf6 {[%emt 0:00:49]} 2. Nf3 {[%emt 0:00:09]} e6 {[%emt 0:00:25]} 3. g3 {[%emt 0:00:06]} d5 {[%emt 0:00:25]} 4. Bg2 {[%emt 0:00:07]} b5 {[%emt 0:01:14]} 5. O-O {[%emt 0:00:14]} Bb7 {[%emt 0:01:22]} 6. a4 {[%emt 0:01:49]} a6 {[%emt 0:02:50]} 7. Nbd2 {[%emt 0:01:06]} Be7 {[%emt 0:01:37]} 8. Nb3 {[%emt 0:01:11]} Nbd7 {[%emt 0:02:44]} 9. c3 {[%emt 0:06:25]} c5 {[%emt 0:01:58]} 10. dxc5 {[%emt 0:01:21]} Nxc5 {[%emt 0:00:22]} 11. Nxc5 {[%emt 0:00:50]} Bxc5 {[%emt 0:00:09]} 12. Nd4 {[%emt 0:03:13]} bxa4 {[%emt 0:02:57]} 13. Qxa4+ {[%emt 0:00:44]} Qd7 {[%emt 0:00:42]} 14. Qa5 {[%emt 0:01:27]} Bd6 {[%emt 0:01:33]} 15. Bg5 {[%emt 0:05:23]} O-O {[%emt 0:02:23]} 16. Nb3 {[%emt 0:06:32]} Rfc8 {[%emt 0:05:53]} 17. Rfd1 {[%emt 0:01:55]} Qc6 {[%emt 0:10:58]} 18. Qa2 {[%emt 0:08:04]} Be5 {[%emt 0:21:22]} 19. Na5 {[%emt 0:01:04]} Qb6 {[%emt 0:02:38]} 20. Be3 {[%emt 0:05:46]} Qc7 {[%emt 0:04:19]} 21. Bd4 {[%emt 0:01:58]} Bxd4 {[%emt 0:02:23]} 22. Rxd4 {[%emt 0:01:06]} e5 {[%emt 0:03:32]} 23. Rb4 {[%emt 0:01:18]} Bc6 {[%emt 0:05:42]} 24. Nxc6 {[%emt 0:05:20]} Qxc6 {[%emt 0:00:12]} 25. Qa5 {[%emt 0:00:22]} e4 {[%emt 0:03:34]} 26. e3 {[%emt 0:04:19]} h5 {[%emt 0:03:43]} 27. Rb6 {[%emt 0:01:06]} Qc7 {[%emt 0:00:53]} 28. Rxa6 {[%emt 0:02:04]} Rxa6 {[%emt 0:00:07]} 29. Qxa6 {[%emt 0:00:08]} Rb8 {[%emt 0:00:22]} 30. Qe2 {[%emt 0:01:59]} Ng4 {[%emt 0:03:16]} 31. Rd1 {[%emt 0:03:05]} Nf6 {[%emt 0:05:10]} 32. h4 {[%emt 0:01:52]} Ra8 {[%emt 0:00:40]} 33. Qc2 {[%emt 0:01:59]} Ra2 {[%emt 0:01:48]} 34. Qb3 {[%emt 0:02:00]} Qa7 {[%emt 0:01:56]} 35. Bf1 {[%emt 0:02:31]} Ra1 {[%emt 0:01:52]} 36. Be2 {[%emt 0:00:18]} g6 {[%emt 0:01:37]} 37. Kg2 {[%emt 0:00:24]} Kg7 {[%emt 0:00:35]} 38. Qc2 {[%emt 0:01:19]} Ra2 {[%emt 0:00:26]} 39. c4 {[%emt 0:04:01]} Qb7 {[%emt 0:00:58]} 40. Rb1 {[%emt 0:01:12]} dxc4 {[%emt 0:00:58]} 41. Bxc4 {[%emt 0:00:47]} Ra5 {[%emt 0:00:13]} 42. Qc3 {[%emt 0:01:41]} Rf5 {[%emt 0:00:56]} 43. Rd1 {[%emt 0:00:58]} Qc7 {[%emt 0:00:30]} 44. Qd4 {[%emt 0:02:23]} Kh7 {[%emt 0:00:23]} 45. Be2 {[%emt 0:01:22]} Qc2 {[%emt 0:01:13]} 46. Qd2 {[%emt 0:00:46]} Qc7 {[%emt 0:00:27]} 47. Qc3 {[%emt 0:01:16]} Qe7 {[%emt 0:00:44]} 48. Rd2 {[%emt 0:01:09]} g5 {[%emt 0:00:43]} 49. Qa3 {[%emt 0:02:15]} Qe8 {[%emt 0:00:45]} 50. hxg5 {[%emt 0:00:53]} Rxg5 {[%emt 0:00:08]} 51. Qd6 {[%emt 0:00:12]} Rg6 {[%emt 0:01:24]} 52. Qf4 {[%emt 0:01:19]} Qe6 {[%emt 0:00:04]} 53. Rd1 {[%emt 0:01:08]} Ng4 {[%emt 0:00:54]} 54. Rh1 {[%emt 0:02:41]} Nf6 {[%emt 0:01:09]} 55. Bxh5 {[%emt 0:00:33]} Nxh5 {[%emt 0:00:03]} 56. Rxh5+ {[%emt 0:00:08]} Kg8 {[%emt 0:00:07]} 57. Qb8+ {[%emt 0:00:09]} Kg7 {[%emt 0:00:03]} 58. Qh8# {[%emt 0:00:10]} 1-0

[Event "EYCC Open U14 2021"]
[Site "Tornelo"]
[Date "2021.10.15"]
[Round "3.8"]
[White "Habans Aguerrea, Javier"]
[Black "Zhugin, Nikolay"]
[Result "1-0"]
[ECO "D00"]
[WhiteElo "2308"]
[BlackElo "2009"]
[Annotator "NA"]
[PlyCount "91"]
[EventDate "2021.10.15"]
[EventType "swiss"]
[EventCountry "NET"]
[SourceTitle "playchess.com"]
[Source "ChessBase"]
[SourceQuality "1"]
[TimeControl "5400+30"]

1. d4 {[%emt 0:00:30]} Nf6 {[%emt 0:00:42]} 2. Bg5 {[%emt 0:00:11]} d5 {[%emt 0:00:05]} 3. e3 {[%emt 0:00:09]} c5 {[%emt 0:00:14]} 4. Nd2 {[%emt 0:01:06]} Nc6 {[%emt 0:00:07]} 5. c3 {[%emt 0:00:54]} cxd4 {[%emt 0:00:13]} 6. exd4 {[%emt 0:00:09]} h6 {[%emt 0:00:25]} 7. Bh4 {[%emt 0:00:55]} Bf5 {[%emt 0:00:38]} 8. Ngf3 {[%emt 0:00:17]} a6 {[%emt 0:00:13]} 9. Be2 {[%emt 0:02:43]} e6 {[%emt 0:00:23]} 10. O-O {[%emt 0:02:16]} Bd6 {[%emt 0:00:54]} 11. Re1 {[%emt 0:02:17]} g5 {[%emt 0:00:32]} 12. Bg3 {[%emt 0:00:28]} Bxg3 {[%emt 0:00:22]} 13. hxg3 {[%emt 0:00:16]} O-O {[%emt 0:00:24]} 14. a4 {[%emt 0:05:51]} Rc8 {[%emt 0:02:36]} 15. Nb3 {[%emt 0:18:52]} Nb4 {[%emt 0:06:02]} 16. Rc1 {[%emt 0:00:31]} Na2 {[%emt 0:00:15]} 17. Ra1 {[%emt 0:00:32]} Nb4 {[%emt 0:00:04]} 18. cxb4 {[%emt 0:13:15]} Bc2 {[%emt 0:00:11]} 19. Qd2 {[%emt 0:00:03]} Bxb3 {[%emt 0:00:03]} 20. Bd3 {[%emt 0:01:57]} Ne4 {[%emt 0:00:21]} 21. Bxe4 {[%emt 0:03:27]} dxe4 {[%emt 0:00:38]} 22. Rxe4 {[%emt 0:00:05]} Rc2 {[%emt 0:00:34]} 23. Qd3 {[%emt 0:09:41]} Rxb2 {[%emt 0:00:32]} 24. Qc3 {[%emt 0:00:18]} Bd5 {[%emt 0:00:06]} 25. Qxb2 {[%emt 0:00:29]} Bxe4 {[%emt 0:00:04]} 26. Ne5 {[%emt 0:01:06]} Qd5 {[%emt 0:06:35]} 27. Ng4 {[%emt 0:01:15]} f5 {[%emt 0:00:20]} 28. Ne3 {[%emt 0:00:27]} Qd6 {[%emt 0:00:06]} 29. Rd1 {[%emt 0:06:34]} f4 {[%emt 0:01:40]} 30. gxf4 {[%emt 0:01:45]} gxf4 {[%emt 0:01:41]} 31. Ng4 {[%emt 0:02:55]} f3 {[%emt 0:22:26]} 32. g3 {[%emt 0:02:46]} h5 {[%emt 0:00:10]} 33. Ne5 {[%emt 0:00:18]} h4 {[%emt 0:00:21]} 34. Qd2 {[%emt 0:04:49]} Qe7 {[%emt 0:04:35]} 35. Re1 {[%emt 0:02:08]} Bd5 {[%emt 0:00:39]} 36. Ng6 {[%emt 0:03:17]} Qg7 {[%emt 0:00:42]} 37. Re5 {[%emt 0:03:26]} hxg3 {[%emt 0:02:16]} 38. Rg5 {[%emt 0:00:10]} gxf2+ {[%emt 0:00:14]} 39. Kxf2 {[%emt 0:00:13]} Rf7 {[%emt 0:03:13]} 40. Ne5 {[%emt 0:01:15]} Qxg5 {[%emt 0:00:15]} 41. Qxg5+ {[%emt 0:00:04]} Rg7 {[%emt 0:00:03]} 42. Qd8+ {[%emt 0:00:07]} Kh7 {[%emt 0:00:04]} 43. Qh4+ {[%emt 0:00:47]} Kg8 {[%emt 0:00:04]} 44. Ng4 {[%emt 0:00:04]} Kf7 {[%emt 0:00:18]} 45. Qf6+ {[%emt 0:01:01]} Kg8 {[%emt 0:00:09]} 46. Qd8+ {[%emt 0:00:04]} 1-0

[Event "EYCC Open U14 2021"]
[Site "Tornelo"]
[Date "2021.10.15"]
[Round "3.9"]
[White "Vergara Anton, Diego"]
[Black "Prazak, Daniel"]
[Result "1-0"]
[ECO "E06"]
[WhiteElo "2258"]
[BlackElo "1945"]
[Annotator "NA"]
[PlyCount "61"]
[EventDate "2021.10.15"]
[EventType "swiss"]
[EventCountry "NET"]
[SourceTitle "playchess.com"]
[Source "ChessBase"]
[SourceQuality "1"]
[TimeControl "5400+30"]

1. d4 {[%emt 0:00:30]} e6 {[%emt 0:00:37]} 2. Nf3 {[%emt 0:00:09]} d5 {[%emt 0:00:04]} 3. g3 {[%emt 0:00:09]} Nf6 {[%emt 0:00:11]} 4. Bg2 {[%emt 0:00:07]} Be7 {[%emt 0:00:04]} 5. c4 {[%emt 0:00:20]} O-O {[%emt 0:00:06]} 6. Nc3 {[%emt 0:00:13]} dxc4 {[%emt 0:04:43]} 7. Ne5 {[%emt 0:00:30]} c5 {[%emt 0:01:32]} 8. dxc5 {[%emt 0:00:16]} Bxc5 {[%emt 0:04:23]} 9. Qxd8 {[%emt 0:04:10]} Rxd8 {[%emt 0:00:21]} 10. O-O {[%emt 0:01:19]} Nbd7 {[%emt 0:19:15]} 11. Rd1 {[%emt 0:02:18]} Re8 {[%emt 0:01:22]} 12. Nxc4 {[%emt 0:01:27]} Rb8 {[%emt 0:02:59]} 13. Nb5 {[%emt 0:04:54]} b6 {[%emt 0:06:51]} 14. Ncd6 {[%emt 0:07:21]} Bxd6 {[%emt 0:00:50]} 15. Nxd6 {[%emt 0:00:29]} Rd8 {[%emt 0:00:35]} 16. b4 {[%emt 0:03:28]} Kf8 {[%emt 0:14:03]} 17. Bb2 {[%emt 0:07:52]} Ba6 {[%emt 0:06:36]} 18. b5 {[%emt 0:01:23]} Bc8 {[%emt 0:00:21]} 19. Rac1 {[%emt 0:06:01]} Nc5 {[%emt 0:02:34]} 20. Be5 {[%emt 0:08:33]} Bd7 {[%emt 0:09:24]} 21. Bf3 {[%emt 0:08:30]} Ke7 {[%emt 0:05:23]} 22. a4 {[%emt 0:05:07]} h6 {[%emt 0:05:47]} 23. a5 {[%emt 0:01:12]} Kf8 {[%emt 0:09:59]} 24. axb6 {[%emt 0:02:00]} axb6 {[%emt 0:00:05]} 25. Nc4 {[%emt 0:02:18]} Bxb5 {[%emt 0:00:31]} 26. Bxb8 {[%emt 0:00:26]} Rxb8 {[%emt 0:00:31]} 27. Nxb6 {[%emt 0:01:12]} Nb3 {[%emt 0:04:22]} 28. Rc8+ {[%emt 0:00:40]} Rxc8 {[%emt 0:00:06]} 29. Nxc8 {[%emt 0:00:04]} Ba6 {[%emt 0:00:13]} 30. Rd8+ {[%emt 0:00:11]} Ne8 {[%emt 0:00:04]} 31. Bc6 {[%emt 0:00:17]} 1-0

[Event "EYCC Open U14 2021"]
[Site "Tornelo"]
[Date "2021.10.15"]
[Round "3.10"]
[White "Veselov, Yaroslav"]
[Black "Olenik Campa, Rudi"]
[Result "1-0"]
[ECO "E94"]
[WhiteElo "1922"]
[BlackElo "2245"]
[Annotator "NA"]
[PlyCount "81"]
[EventDate "2021.10.15"]
[EventType "swiss"]
[EventCountry "NET"]
[SourceTitle "playchess.com"]
[Source "ChessBase"]
[SourceQuality "1"]
[TimeControl "5400+30"]

1. d4 {[%emt 0:00:30]} Nf6 {[%emt 0:00:33]} 2. c4 {[%emt 0:00:03]} g6 {[%emt 0:00:05]} 3. Nc3 {[%emt 0:00:04]} Bg7 {[%emt 0:00:02]} 4. e4 {[%emt 0:00:03]} d6 {[%emt 0:00:03]} 5. Be2 {[%emt 0:00:04]} O-O {[%emt 0:00:03]} 6. Nf3 {[%emt 0:00:03]} e5 {[%emt 0:00:04]} 7. O-O {[%emt 0:00:04]} Bg4 {[%emt 0:00:11]} 8. d5 {[%emt 0:02:21]} a5 {[%emt 0:00:05]} 9. Be3 {[%emt 0:00:23]} Na6 {[%emt 0:00:20]} 10. h3 {[%emt 0:00:46]} Bd7 {[%emt 0:00:36]} 11. Nd2 {[%emt 0:02:40]} Ne8 {[%emt 0:04:09]} 12. a3 {[%emt 0:01:22]} f5 {[%emt 0:02:40]} 13. exf5 {[%emt 0:04:03]} gxf5 {[%emt 0:00:53]} 14. f4 {[%emt 0:00:04]} e4 {[%emt 0:07:32]} 15. a4 {[%emt 0:18:42]} Nc5 {[%emt 0:07:13]} 16. Nb3 {[%emt 0:09:46]} Nxb3 {[%emt 0:00:15]} 17. Qxb3 {[%emt 0:00:07]} b6 {[%emt 0:00:03]} 18. Qc2 {[%emt 0:06:53]} Nf6 {[%emt 0:13:51]} 19. Rad1 {[%emt 0:05:52]} Kh8 {[%emt 0:03:15]} 20. Kh2 {[%emt 0:08:15]} Rg8 {[%emt 0:00:35]} 21. g3 {[%emt 0:00:09]} Qe7 {[%emt 0:16:42]} 22. Rg1 {[%emt 0:01:31]} Bh6 {[%emt 0:04:13]} 23. Rdf1 {[%emt 0:01:58]} Rg6 {[%emt 0:00:53]} 24. Bd4 {[%emt 0:01:48]} Bg7 {[%emt 0:00:29]} 25. Qd2 {[%emt 0:01:42]} Rh6 {[%emt 0:05:20]} 26. b3 {[%emt 0:02:11]} Rg8 {[%emt 0:08:49]} 27. Nd1 {[%emt 0:02:56]} Rg6 {[%emt 0:08:35]} 28. Ne3 {[%emt 0:01:03]} h6 {[%emt 0:01:21]} 29. Ng2 {[%emt 0:16:27]} h5 {[%emt 0:00:15]} 30. Qd1 {[%emt 0:02:09]} Rh6 {[%emt 0:00:37]} 31. Ne3 {[%emt 0:00:33]} Qf7 {[%emt 0:02:32]} 32. Kg2 {[%emt 0:04:05]} Kh7 {[%emt 0:00:43]} 33. Kf2 {[%emt 0:00:05]} Bh8 {[%emt 0:00:19]} 34. Ke1 {[%emt 0:00:30]} Rhg6 {[%emt 0:02:34]} 35. Bxh5 {[%emt 0:00:32]} Qg7 {[%emt 0:00:59]} 36. Bxg6+ {[%emt 0:00:07]} Qxg6 {[%emt 0:00:04]} 37. Kf2 {[%emt 0:00:31]} Qg7 {[%emt 0:00:17]} 38. Bxf6 {[%emt 0:00:51]} Qxf6 {[%emt 0:00:03]} 39. Qh5+ {[%emt 0:00:02]} Qh6 {[%emt 0:00:52]} 40. Qxh6+ {[%emt 0:00:25]} Kxh6 {[%emt 0:00:03]} 41. g4 {[%emt 0:01:23]} 1-0

[Event "EYCC Open U14 2021"]
[Site "Tornelo"]
[Date "2021.10.15"]
[Round "3.11"]
[White "Hartofylakas, Spyros"]
[Black "Palczert, Matyas"]
[Result "0-1"]
[ECO "B40"]
[WhiteElo "1912"]
[BlackElo "2204"]
[Annotator "NA"]
[PlyCount "31"]
[EventDate "2021.10.15"]
[EventType "swiss"]
[EventCountry "NET"]
[SourceTitle "playchess.com"]
[Source "ChessBase"]
[SourceQuality "1"]
[TimeControl "5400+30"]

1. e4 {[%emt 0:00:30]} c5 {[%emt 0:00:49]} 2. Nf3 {[%emt 0:00:08]} e6 {[%emt 0:00:20]} 3. c3 {[%emt 0:00:11]} Nf6 {[%emt 0:00:31]} 4. Bd3 {[%emt 0:00:11]} Nc6 {[%emt 0:11:11]} 5. Bc2 {[%emt 0:02:29]} Qc7 {[%emt 0:06:52]} 6. d4 {[%emt 0:05:50]} cxd4 {[%emt 0:01:27]} 7. cxd4 {[%emt 0:00:29]} Nb4 {[%emt 0:02:13]} 8. Bd3 {[%emt 0:02:38]} Qxc1 {[%emt 0:03:00]} 9. Qxc1 {[%emt 0:01:26]} Nxd3+ {[%emt 0:00:17]} 10. Kd2 {[%emt 0:00:14]} Nxc1 {[%emt 0:00:15]} 11. Rxc1 {[%emt 0:00:11]} Nxe4+ {[%emt 0:00:17]} 12. Ke1 {[%emt 0:00:09]} Be7 {[%emt 0:00:52]} 13. Nc3 {[%emt 0:00:08]} Nxc3 {[%emt 0:00:12]} 14. Rxc3 {[%emt 0:00:09]} Bb4 {[%emt 0:00:21]} 15. Rac1 {[%emt 0:00:10]} Bxc3+ {[%emt 0:00:10]} 16. Rxc3 {[%emt 0:00:10]} 0-1